{"text_format":"1","workbook":"xlsx","n_sheets":2,"sheets":["Dokonaj wyboru","Załącznik"],"not_rendered":{"charts":0,"images":2,"macros":1,"external_links":1,"defined_names":2,"comments":0,"pivot_tables":0},"unopened":[],"bounds":{"document_bytes":16777216,"sheet_cells":100000,"rows_first":2000,"rows_last":500,"rows_between":2000,"halvings":0,"cell_chars":16384,"cell_head_chars":4096},"cells_cut":0,"cells_raw":0,"read":"whole","date_system":"1900"}

{"sheet":"Dokonaj wyboru","index":0,"n_rows":36,"n_cols":23,"rows_kept":36,"cut":false,"hidden":false,"merged":[[8,0,8,2],[8,6,8,8],[8,12,8,14],[8,18,8,20]]}
[null,null,"Kalkulator pomocy dydaktycznych",null,"w ramach dofinansowania MEiN na pracownie przyrodnicze"]
["Rok 2021"]
[null,"Instrukcja obsługi",null,null,null,null,null,null,null,null,{"$f":"E9+K9+Q9+W9","v":0},"← RAZEM brutto dla całej szkoły"]
["1. Wpisz wybraną liczbę elementów w rubryce L. szt. (pozostałe przedmioty - z prawej strony)."]
["2. Pamietaj, by elementy zaznaczone na niebiesko wybierać razem albo w ogóle."]
["3. W ramach jednego z przedmiotów (i tylko jednego dla całej szkoły) wybierz PS-2400-DIG (Program SPARKvue do obsługi czujników i doświadczeń - licencja bezterminowa na wszystkie komputery w placówce) - zaznaczony na zielono. Wtedy licencja PS-2401-DIG na jeden komputer nie jest już potrzebna."]
["4. Kliknij czerwony przycisk \"Utwórz gotowy załącznik według wzoru MEiN\" - gotowy dokument znajdzie się w zakładce \"Załącznik\"."]
[]
["GEOGRAFIA",null,null,null,{"$f":"SUM(E11:E50)","v":0},null,"BIOLOGIA",null,null,null,{"$f":"SUM(K11:K50)","v":0},null,"FIZYKA",null,null,null,{"$f":"SUM(Q11:Q50)","v":0},null,"CHEMIA",null,null,null,{"$f":"SUM(W11:W50)","v":0}]
["Symbol","Zestaw zawiera","L. szt.","Cena brutto","Wartość brutto",null,"Symbol","Zestaw zawiera","L. szt.","Cena brutto","Wartość brutto",null,"Symbol","Zestaw zawiera","L. szt.","Cena brutto","Wartość brutto",null,"Symbol","Zestaw zawiera","L. szt.","Cena brutto","Wartość brutto"]
["PS-3209","Bezprzewodowy czujnik pogody z GPS",null,1564,{"$f":"D11*C11","v":0},null,"PS-3201","Bezprzewodowy czujnik temperatury",null,432,{"$f":"J11*I11","v":0},null,"ME-5718A","Tor metalowy 1,2 m z 2 wózkami pomiarowymi SMART - zestaw z akcesoriami",null,4275,{"$f":"P11*O11","v":0},null,"PS-3201","Bezprzewodowy czujnik temperatury",null,432,{"$f":"V11*U11","v":0}]
["PS-3553","Akcesoria wiatromierza do czujnika pogody",null,296,0,null,"PS-3208","Bezprzewodowy czujnik CO2",null,1846,0,null,"PS-3201","Bezprzewodowy czujnik temperatury",null,432,0,null,"PS-3204","Bezprzewodowy czujnik pH",null,645,0]
["PS-3213","Bezprzewodowy czujnik światła",null,655,0,null,"PS-3204","Bezprzewodowy czujnik pH",null,645,0,null,"PS-3202","Bezprzewodowy czujnik siły i przyspieszenia",null,937,0,null,"PS-3514","Sonda pH do powierzchni płaskich",null,369,0]
["PS-3201","Bezprzewodowy czujnik temperatury",null,432,0,null,"PS-3514","Sonda pH do powierzchni płaskich",null,369,0,null,"PS-3219","Bezprzewodowy czujnik położenia",null,937,0,null,"PS-3210","Bezprzewodowy czujnik konduktywności",null,918,0]
["PS-2401-DIG","Program SPARKvue do obsługi czujników i doświadczeń - licencja bezterminowa na jeden komputer (cyfr.)",null,797,0,null,"PS-3213","Bezprzewodowy czujnik światła",null,655,0,null,"PS-3203","Bezprzewodowy czujnik ciśnienia",null,816,0,null,"PS-3208","Bezprzewodowy czujnik CO2",null,1846,0]
["PS-2400-DIG","Program SPARKvue do obsługi czujników i doświadczeń - licencja bezterminowa na wszystkie komputery w placówce (cyfr.)",null,2332,0,null,"PS-3217","Bezprzewodowy czujnik tlenu",null,1719,0,null,"PS-3212","Bezprzewodowy czujnik natężenia prądu",null,709,0,null,"PS-3545","Osłona wodoodporna do czujnika CO2",null,184,0]
["PS-3500","Adapter USB - Bluetooth 4.0",null,121,0,null,"PS-3207","Bezprzewodowy czujnik tętna wysiłkowy",null,724,0,null,"EM-3534","Bezprzewodowy moduł amperomierza",null,627,0,null,"PS-3203","Bezprzewodowy czujnik ciśnienia",null,816,0]
["SMART","Monitor Interaktywny",null,7500,0,null,"PS-3218","Bezprzewodowy czujnik ciśnienia krwi",null,918,0,null,"EM-3535","Modułowy obwód prądu - podstawowy",null,1589,0,null,"PS-3217","Bezprzewodowy czujnik tlenu",null,1719,0]
["ACER","Laptop",null,2500,0,null,"PS-2111-FR","PASPORT Czujnik EKG (UE)",null,1394,0,null,"PS-3211","Bezprzewodowy czujnik napięcia elektrycznego",null,602,0,null,"PS-3224","Bezprzewodowy czujnik tlenu rozpuszczonego",null,2735,0]
["TABLET","Tablet",null,1000,0,null,"PS-3200","Interfejs AirLink",null,510,0,null,"EM-3533","Bezprzewodowy moduł generatora sygnału AC/DC ",null,1248,0,null,"PS-3202","Bezprzewodowy czujnik siły i przyspieszenia",null,937,0]
["WIZ","Wizualizer",null,2300,0,null,"PS-3227","Bezprzewodowy czujnik dźwięku",null,772,0,null,"PS-3213","Bezprzewodowy czujnik światła",null,655,0,null,"PS-2401-DIG","Program SPARKvue do obsługi czujników i doświadczeń - licencja bezterminowa na jeden komputer (cyfr.)",null,797,0]
[null,null,null,null,null,null,"PS-2163","PASPORT Czujnik wilgotności gleby                                                                       ",null,1676,0,null,"PS-3227","Bezprzewodowy czujnik dźwięku",null,772,0,null,"PS-2400-DIG","Program SPARKvue do obsługi czujników i doświadczeń - licencja bezterminowa na wszystkie komputery w placówce (cyfr.)",null,2332,0]
[null,null,null,null,null,null,"PS-3200","Interfejs AirLink",null,510,0,null,"PS-3221","Bezprzewodowy 3-osiowy czujnik pola magnetycznego",null,690,0,null,"PS-3500","Adapter USB - Bluetooth 4.0",null,121,0]
[null,null,null,null,null,null,"PS-3215","Bezprzewodowy kolorymetr i czujnik zmętnienia",null,1049,0,null,"OS-8515C","Zestaw do optyki - podstawowy",null,3876,0,null,"SMART","Monitor Interaktywny",null,7500,0]
[null,null,null,null,null,null,"PS-2187","PASPORT Czujnik częstości oddechu",null,1870,0,null,"ME-1246","Wyświetlacz wektorów do wózka pomiarowego SMART",null,627,0,null,"ACER","Laptop",null,2500,0]
[null,null,null,null,null,null,"PS-3200","Interfejs AirLink",null,510,0,null,"PS-3225","Bezprzewodowa inteligentna fotobramka podwójna",null,704,0,null,"TABLET","Tablet",null,1000,0]
[null,null,null,null,null,null,"PS-2521B","Pojemnik do fotosyntezy",null,627,0,null,"ME-6816","Zbiorniki ilustrujące cyrkulację i konwekcję",null,704,0,null,"WIZ","Wizualizer",null,2300,0]
[null,null,null,null,null,null,"ME-6667","Eko-komora",null,393,0,null,"PS-3231","Urządzenie //code.Node",null,632,0]
[null,null,null,null,null,null,"PS-2401-DIG","Program SPARKvue do obsługi czujników i doświadczeń - licencja bezterminowa na jeden komputer (cyfr.)",null,797,0,null,"PS-3220","Bezprzewodowy czujnik położenia w ruchu obrotowym",null,1627,0]
[null,null,null,null,null,null,"PS-2400-DIG","Program SPARKvue do obsługi czujników i doświadczeń - licencja bezterminowa na wszystkie komputery w placówce (cyfr.)",null,2332,0,null,"PS-2401-DIG","Program SPARKvue do obsługi czujników i doświadczeń - licencja bezterminowa na jeden komputer (cyfr.)",null,797,0]
[null,null,null,null,null,null,"PS-3500","Adapter USB - Bluetooth 4.0",null,121,0,null,"PS-2400-DIG","Program SPARKvue do obsługi czujników i doświadczeń - licencja bezterminowa na wszystkie komputery w placówce (cyfr.)",null,2332,0]
[null,null,null,null,null,null,"SMART","Monitor Interaktywny",null,7500,0,null,"PS-3500","Adapter USB - Bluetooth 4.0",null,121,0]
[null,null,null,null,null,null,"ACER","Laptop",null,2500,0,null,"SMART","Monitor Interaktywny",null,7500,0]
[null,null,null,null,null,null,"TABLET","Tablet",null,1000,0,null,"ACER","Laptop",null,2500,0]
[null,null,null,null,null,null,"WIZ","Wizualizer",null,2300,0,null,"TABLET","Tablet",null,1000,0]
[null,null,null,null,null,null,null,null,null,null,null,null,"WIZ","Wizualizer",null,2300,0]

{"sheet":"Załącznik","index":1,"n_rows":45,"n_cols":16,"rows_kept":45,"cut":false,"hidden":false,"merged":[[3,2,3,13],[5,1,5,14],[7,0,7,15],[8,0,8,15],[9,0,9,15],[11,0,11,3],[11,4,11,7],[11,8,11,11],[11,12,11,15],[15,0,15,2],[15,4,15,6],[15,8,15,10],[15,12,15,14],[12,0,12,2],[12,4,12,6],[12,8,12,10],[12,12,12,14],[13,0,13,2],[13,4,13,6],[13,12,13,14],[14,0,14,2],[13,8,13,10],[14,8,14,10],[14,4,14,6],[14,12,14,14],[18,0,18,2],[18,4,18,6],[18,8,18,10],[18,12,18,14],[19,0,19,2],[19,4,19,6],[20,8,20,10],[16,0,16,2],[16,4,16,6],[16,8,16,10],[16,12,16,14],[17,0,17,2],[17,4,17,6],[17,8,17,10],[17,12,17,14],[19,12,19,14],[19,8,19,10],[23,0,23,2],[23,4,23,6],[23,8,23,10],[23,12,23,14],[24,0,24,2],[24,4,24,6],[24,12,24,14],[20,0,20,2],[20,4,20,6],[21,0,21,2],[21,4,21,6],[21,8,21,10],[22,0,22,2],[22,4,22,6],[22,8,22,10],[20,12,20,14],[21,12,21,14],[22,12,22,14],[24,8,24,10],[25,0,25,2],[25,4,25,6],[25,8,25,10],[25,12,25,14],[26,0,26,2],[26,4,26,6],[26,8,26,10],[26,12,26,14],[34,4,34,6],[30,8,30,10],[33,8,33,10],[34,8,34,10],[30,12,30,14],[33,12,33,14],[34,12,34,14],[27,0,27,2],[27,4,27,6],[27,8,27,10],[27,12,27,14],[28,0,28,2],[28,4,28,6],[28,8,28,10],[28,12,28,14],[29,0,29,2],[44,1,44,10],[30,0,30,2],[33,0,33,2],[34,0,34,2],[30,4,30,6],[33,4,33,6],[37,0,37,2],[37,4,37,6],[37,8,37,10],[38,0,38,2],[38,4,38,6],[38,8,38,10],[35,0,35,2],[35,4,35,6],[35,8,35,10],[36,0,36,2],[36,4,36,6],[36,8,36,10],[31,0,31,2],[31,4,31,6],[31,8,31,10],[32,0,32,2],[32,4,32,6],[32,8,32,10],[29,4,29,6],[29,8,29,10],[29,12,29,14],[39,0,39,2],[39,4,39,6],[39,8,39,10],[39,12,39,14],[37,12,37,14],[38,12,38,14],[35,12,35,14],[36,12,36,14],[31,12,31,14],[32,12,32,14]]}
["Załącznik ……………"]
[]
[]
[null,null,"Nazwa Szkoły: ____________________________________________________________"]
[]
[null,"Wykaz pomocy dydaktycznych zakupionych w roku bieżącym lub planowanych do zakupienia na wyposażenie szkoły"]
[]
["Proszę o nie wpisywanie mebli do wykazu. "]
["Możliwy jest zakup sprzętu szkolnego niezbędnego do realizacji postawy programowej z danego przedmiotu (np. dygestorium, stół demonstracyjny, szafka na chemikalia) "]
[]
[]
["geografia",null,null,null,"biologia",null,null,null,"fizyka",null,null,null,"chemia"]
["pomoce dydaktyczne",null,null,"koszty\n(w zł*)","pomoce dydaktyczne",null,null,"koszty\n(w zł*)","pomoce dydaktyczne",null,null,"koszty\n(w zł*)","pomoce dydaktyczne",null,null,"koszty\n(w zł*)"]
[]
[]
[]
[]
[]
[]
[]
[]
[]
[]
[]
[]
[]
[]
[]
[]
[]
[]
[]
[]
[]
[]
[]
[]
[]
[]
[null,null,null,{"$f":"SUM(D14:D39)","v":0},null,null,null,{"$f":"SUM(H14:H39)","v":0},null,null,null,{"$f":"SUM(L14:L39)","v":0},null,null,null,{"$f":"SUM(P14:P39)","v":0}]
[]
["* po zaokrągleniu do pełnych złotych"]
[]
[]
[null,"Podpis dyrektora szkoły: ___________________________"]